Cogmind - Beta 12 X4 @@@ ROGUE MODE // 2022.12.29 @ 21:35:30 Player: Lunatic Blue Result: Destroyed by D-53 Grenadier with Mini Grenade Launcher Performance ------------- Evolutions (0) 0 Regions Visited (2) 400 Robots Destroyed (18) 90 Value Destroyed (591) 591 Prototype IDs (0) 0 Alien Tech Used (0) 0 Bonus (0) 0 TOTAL SCORE: 1081 Bonus ------- None Cogmind --------- Core Integrity 0/250 Matter 300/300 Energy 100/100 System Corruption 1% Temperature Cool (0) Movement Walking (260) Ox2 Location -10/Mines Parts ------- > --- POWER (1) -------- (None) > --- PROPULSION (2) --- Aluminum Leg > --- UTILITY (2) ------ Improved Heat Sink Large Storage Unit > --- WEAPON (2) ------- (None) > --- INVENTORY (15) --- Ion Engine Light Nuclear Core Aluminum Leg Aluminum Leg Compact Wheel Improved Heat Sink Structural Scanner Targeting Computer Hardened Light Armor Plating Hardened Light Armor Plating Hardened Light Armor Plating Hardened Medium Armor Plating Particle Gun Spread Laser Grenade Launcher Peak State ------------ > --- POWER ------------ Light Nuclear Core > --- PROPULSION ------- Aluminum Leg Aluminum Leg > --- UTILITY ---------- Improved Heat Sink Large Storage Unit > --- WEAPON ----------- Particle Gun Particle Gun > --- INVENTORY -------- Ion Engine Aluminum Leg Aluminum Leg Compact Wheel Structural Scanner Targeting Computer Hardened Light Armor Plating Hardened Light Armor Plating Hardened Light Armor Plating Hardened Light Armor Plating Medium Laser Spread Laser Spread Laser Grenade Launcher [Rating: 15] Favorites ----------- Power Ion Engine Engine Ion Engine Power Core Light Nuclear Core Propulsion Aluminum Leg Treads Light Treads Leg Aluminum Leg Wheel Wheel Utility Improved Heat Sink Device Improved Heat Sink Storage Large Storage Unit Weapon Particle Gun Energy Gun Particle Gun Ballistic Gun Assault Rifle Build | -11 -10 -10 ------- Run | Scr Mat Min Slots Evolved . | . . . Power . | . . . Propulsion . | . . . Utility . | . . . Weapon . | . . . Parts Attached 21 | 8 10 3 Power 3 | 1 1 1 Engine 2 | 1 1 . Core 1 | . . 1 Reactor . | . . . Propulsion 6 | 3 2 1 Treads 1 | 1 . . Leg 3 | . 2 1 Wheel 2 | 2 . . Hover . | . . . Flight . | . . . Utility 7 | 1 5 1 Device 3 | . 2 1 Storage 4 | 1 3 . Processor . | . . . Hackware . | . . . Protection . | . . . Artifact . | . . . Weapon 5 | 3 2 . Energy Gun 3 | 1 2 . Energy Cannon . | . . . Ballistic Gun 2 | 2 . . Ballistic Cannon . | . . . Launcher . | . . . Special Weapon . | . . . Impact Weapon . | . . . Slashing Weapon . | . . . Piercing Weapon . | . . . Special Melee Weapon . | . . . Unidentified Prototypes . | . . . Parts Lost 8 | . 2 6 Power 3 | . 1 2 Propulsion 3 | . 1 2 Utility . | . . . Weapon 2 | . . 2 Highest Loss Streak 4 | . 1 4 To Critical Strikes . | . . . Average Slot Usage (%) 98 | . 98 98 Engine 11 | . 14 4 Core 2 | . . 9 Treads 4 | . 6 . Leg 19 | . 15 27 Wheel 4 | . 6 . Device 13 | . 12 14 Storage 14 | . 14 14 Energy Gun 20 | . 17 27 Ballistic Gun 7 | . 10 . Naked Turns . | . . . Heaviest Build 32 | 14 32 32 Greatest Support 20 | 16 20 20 Greatest Overweight (x) 2 | 1 1 2 Average Overweight (x) . | . . 1 Largest Inventory Capacity 15 | 8 15 15 Average Capacity 12 | 7 11 15 Most Carried 15 | 3 15 15 Average Carried 9 | 2 8 14 Final Capacity 15 | 8 15 15 Final Carried 15 | 3 15 15 Class Distribution -------------------- 65% | Scavenger-Mutant 34% | Mutant Dominant Class ---------------- Scavenger-Mutant | -10/Materials Scavenger-Mutant | -10/Mines Resources | -11 -10 -10 ----------- Run | Scr Mat Min Matter Collected 617 | 277 310 30 Remotely . | . . . Salvage Created 682 | 79 513 90 Parts 42 | 4 34 4 Haulers Intercepted . | . . . Recyclers Shooed 1 | 1 . . Parts Field Recycled . | . . . Retrieved Matter . | . . . Parts Self-Destructed . | . . . Prevented . | . . . Kills | -11 -10 -10 ------- Run | Scr Mat Min Combat Hostiles Destroyed 15 | . 13 2 Guns 15 | . 13 2 Classes Destroyed 4 | 2 2 . Tunneler 1 | 1 . . Recycler 1 | 1 . . Watcher 1 | . 1 . Grunt 15 | . 13 2 Best Kill Streak 2 | 2 2 2 Combat Bots Only 2 | . 2 2 Max Kills in Single Turn 1 | 1 1 1 Gunslinging . | . . . Exploded . | . . . Melee . | . . . Uniques/NPCs Destroyed . | . . . Combat | -11 -10 -10 -------- Run | Scr Mat Min Damage Taken 1253 | . 668 585 Core 275 | . 119 156 Absorbed by Shields . | . . . Core Remaining (%) 100 | 100 . . Volleys Fired 75 | 5 64 6 Largest 2 | 2 2 2 Hottest 130 | 40 130 130 Shots Fired 150 | 10 128 12 Gun 150 | 10 128 12 Cannon . | . . . Launcher . | . . . Special . | . . . Kinetic 106 | 10 96 . Thermal 44 | . 32 12 Explosive . | . . . Electromagnetic . | . . . Robot Hit Streak 25 | 8 25 7 Robot Miss Streak 4 | 1 4 1 Penetration Max . | . . . Secondary Targets 3 | . 2 1 Max Gunslinging Chain 1 | . 1 1 Shots Hit Robots 105 | 8 88 9 Core Hits 38 | 3 32 3 Critical Kills . | . . . Critical Parts Destroyed . | . . . Critical Strikes . | . . . Melee Attacks . | . . . Impact . | . . . Slashing . | . . . Piercing . | . . . Sneak Attacks . | . . . Combat Hostiles . | . . . Follow-up Attacks . | . . . Damage Inflicted 1256 | 89 1012 155 Guns 1256 | 89 1012 155 Cannons . | . . . Explosions . | . . . Melee . | . . . Ramming . | . . . Kinetic 796 | 89 707 . Thermal 460 | . 305 155 Explosive . | . . . Electromagnetic . | . . . Impact . | . . . Slashing . | . . . Piercing . | . . . Highest Corruption 1 | . 1 1 Average Corruption 1 | . 1 1 Corruption Purged . | . . . Corruption Blocked . | . . . Effects 5 | . 2 3 Message Errors 3 | . 2 1 Matter Fused 1 | . . 1 Heat Flow Errors 1 | . . 1 Overload Shots . | . . . Overflow Damage . | . . . Projectiles . | . . . Explosions . | . . . Melee . | . . . Knockbacks . | . . . Impact . | . . . Kinetic . | . . . Secondary . | . . . Self-Inflicted Damage . | . . . Shots . | . . . Rammed . | . . . Targets Rammed . | . . . Kicked . | . . . Crushed . | . . . Highest Temperature 190 | . 186 190 Average Temperature 65 | . 54 97 Received Heat Transfer 456 | . 408 48 Siege Activations . | . . . Robots Corrupted . | . . . Combat Hostiles . | . . . Parts Fried . | . . . Impact Corruptions . | . . . Robots Melted . | . . . Combat Hostiles . | . . . Parts Melted . | . . . Heat Transferred 1036 | . 703 333 Parts Sabotaged . | . . . Parts Stolen . | . . . Parts Stripped . | . . . Power Chain Reactions . | . . . Missiles Intercepted . | . . . Alert | -11 -10 -10 ------- Run | Scr Mat Min Peak Influence 301 | 10 301 73 Initial 43 | . 6 43 Average 101 | 4 125 59 Maximum Alert Level 1 | . 1 . Low Security (%) 90 | 100 86 100 Level 1 9 | . 13 . Level 2 . | . . . Level 3 . | . . . Level 4 . | . . . Level 5 . | . . . High Security . | . . . Max Security . | . . . Squads Dispatched 5 | . 5 . Investigation 3 | . 3 . Extermination . | . . . Reinforcement 2 | . 2 . Assault . | . . . Garrison . | . . . Intercept . | . . . Searches Triggered . | . . . Construction Impeded . | . . . Haulers Reinforced . | . . . Active Scanning Responses . | . . . Cargo Convoy Interrupts . | . . . Stealth | -11 -10 -10 --------- Run | Scr Mat Min Distress Signals 1 | . 1 . Communications Jammed . | . . . Distress Signals . | . . . Times Spotted 30 | . 26 4 Peak Tracking Total 4 | . 4 2 Tactical Retreats . | . . . Traps | -11 -10 -10 ------- Run | Scr Mat Min Traps Triggered 2 | . 1 1 Indirectly . | . . . Trap Hack Attempts . | . . . Triggered . | . . . Disarmed . | . . . Reprogrammed . | . . . Reused . | . . . Traps Extracted . | . . . Installed . | . . . Triggered . | . . . Machines | -11 -10 -10 ---------- Run | Scr Mat Min Machines Disabled . | . . . Max in Single Turn . | . . . Machines Sabotaged . | . . . Overloaded Fab Kills . | . . . Hacking | -11 -10 -10 --------- Run | Scr Mat Min Machines Accessed 8 | . 7 1 Terminals 5 | . 5 . Fabricators . | . . . Repair Stations . | . . . Recycling Units 2 | . 2 . Scanalyzers . | . . . Garrison Access . | . . . Total Hacks 16 | . 15 1 Successful 6 | . 5 1 Failed 10 | . 10 . Catastrophic 1 | . 1 . Database Lockouts . | . . . Manual 11 | . 11 . Terminals 13 | . 13 . Fabricators . | . . . Repair Stations . | . . . Recycling Units 2 | . 2 . Scanalyzers . | . . . Garrison Access . | . . . Terminal Hacks 3 | . 2 1 Robot Analysis 2 | . 2 . Open Door 1 | . . 1 Fabricator Hacks . | . . . Repair Station Hacks . | . . . Recycling Unit Hacks . | . . . Scanalyzer . | . . . Garrison Access Hacks . | . . . Unauthorized Hacks 3 | . 3 . Terminals 1 | . 1 . Botnet 1 | . 1 . Fabricators . | . . . Repair Stations . | . . . Recycling Units 2 | . 2 . Tunnel 2 | . 2 . Scanalyzers . | . . . Garrison Access . | . . . Data Cores Recovered . | . . . Used . | . . . Hacking Detections 5 | . 5 . Full Trace Events 1 | . 1 . Feedback Events . | . . . Feedback Blocked . | . . . Robot Schematics Acquired . | . . . Robots Built . | . . . Authchips . | . . . Time . | . . . Total Robot Build Rating . | . . . Part Schematics Acquired . | . . . Parts Built . | . . . Authchips . | . . . Time . | . . . Total Part Build Rating . | . . . Parts Repaired . | . . . Time . | . . . Parts Recycled . | . . . Recycled Matter . | . . . Retrieved Matter . | . . . Retrieved Components . | . . . Parts Scanalyzed . | . . . Part Schematics Acquired . | . . . Parts Damaged . | . . . Bothacking | -11 -10 -10 ------------ Run | Scr Mat Min Used RIF Installer . | . . . Robots Hacked . | . . . Non-combat . | . . . Combat . | . . . Robot Hacks Applied . | . . . Relay Couplers Released . | . . . Fabnet Peak Effective % . | . . . Robots Rewired . | . . . Allies Hacked . | . . . Hacks Repelled . | . . . Allies | -11 -10 -10 -------- Run | Scr Mat Min Total Allies . | . . . Largest Group . | . . . Highest-Rated Group . | . . . Highest-Rated Ally . | . . . Total Orders . | . . . Ally Attacks . | . . . Total Damage . | . . . Kills . | . . . Allies Corrupted . | . . . Allies Melted . | . . . Intel | -11 -10 -10 ------- Run | Scr Mat Min Robot Analysis Total 2 | . 2 . Derelict Logs Recovered 2 | . . 2 Drone Launches . | . . . Drone Recoveries . | . . . Exploration | -11 -10 -10 ------------- Run | Scr Mat Min Turns Passed 1465 | 62 980 423 Spaces Moved 745 | 38 505 202 Core 1 | 1 . . Treads . | . . . Legs 506 | . 304 202 Wheels 238 | 37 201 . Hover . | . . . Flight . | . . . Fastest Speed 50 | 50 95 190 Average Speed 150 | 90 139 191 Slowest Speed 260 | 100 190 260 Overloaded Moves . | . . . Propulsion Burnouts . | . . . Robots Hopped . | . . . Cave-ins Triggered . | . . . Exploration Rate (%) 42 | 4 72 51 Regions Visited 2 Branch Regions 1 Pre-discovered Areas 2 | . 2 . Known Exits Taken . | . . . Unknown Exits Taken 2 | 1 1 . Scrap Searched 2 | . . 2 Spaces Dug . | . . . Terrain Destroyed . | . . . Melee . | . . . Projectile . | . . . AOE . | . . . Terrain Rammed . | . . . Walls Destroyed . | . . . Machines Disabled . | . . . Actions | -11 -10 -10 --------- Run | Scr Mat Min Total 948 | 53 664 231 Wait 72 | . 63 9 Move 743 | 37 504 202 Hop . | . . . Pick Up 24 | 1 17 6 Fast Attach 11 | 8 3 . Attach 5 | . 3 2 Detach 2 | 2 . . Swap 5 | . 4 1 Drop 11 | . 6 5 Fire 75 | 5 64 6 Melee . | . . . Ram . | . . . Kick . | . . . Crush . | . . . Escape Stasis . | . . . Rewire . | . . . Trap . | . . . Miscellaneous . | . . . Route ------- -11/Scrapyard -10/Materials (discovered 4 exits: *Mat x2 / *Min x2) -10/Mines (discovered 2 exits: *Mat x2) History --------- Turn | Location | Event 42 | -11/Scrapyard | Discovered new exit (range 16) 63 | -11/Scrapyard | Entered Materials 102 | -10/Materials | Discovered new exit (range 16) 305 | -10/Materials | Discovered new exit (range 15) 318 | -10/Materials | Build established: Mutant 633 | -10/Materials | Discovered new exit (range 5) 800 | -10/Materials | Build established: Scavenger-Mutant 1000 | -10/Materials | Discovered new exit (range 15) 1043 | -10/Materials | Entered Mines 1057 | -10/Mines | Identified exit to Materials 1068 | -10/Mines | Discovered exit to Materials (range 7) 1281 | -10/Mines | Met a Derelict who couldn't figure out how to use a Trap Extractor 1424 | -10/Mines | Assembled infested the area 1455 | -10/Mines | Core integrity fell below 50% 1464 | -10/Mines | Core integrity fell below 20% 1466 | -10/Mines | Destroyed by D-53 Grenadier with Mini Grenade Launcher Last Messages --------------- 01284_ Triggered Proton Bomb Trap. 01284_ A bubble of electromagnetic force engulfs the area. 01284_ SHOP.Sys disabled. 01284_ Machine disabled. 01289_ Dropped Hrd. Light Armor Plating. 01289_ Acquired Hrd. Medium Armor Plating. 01303_ U-05 Engineer lays Concrete. 01308_ System corrupted: Matter fused (-5). 01325_ System corrupted: Heat flow error (+134). 01424_ ALERT: Infestation in the mines, dispatching Demolisher response squad. 01454_ C-30 ARC bursts open, deploying its payload. 01454_ D-53 Grenadier unfolds itself. 01457_ Particle Gun destroyed. 01459_ Aluminum Leg destroyed. 01461_ Lgt. Nuclear Core destroyed. 01463_ The unstable cave ceiling collapses. 01465_ Particle Gun destroyed. 01465_ U-05 Engineer builds a Wall. 01466_ The unstable cave ceiling collapses. Map ----- +----------------------------------------------------+ | | | | | ??????????????????????????????????????????????? | | ??????????????????????????????????????????????? | | ??????????????????????????????????????????????? | | ??????????????????????????????????????????????? | | ??????????????????????????????????????????????? | | ??????????????????????????????????????????????? | | ??????????????????????????????????????????????? | | ??????????????????????????????????????????????? | | ??????????????????????????????????????????????? | | ??????????????????????????????????????????????? | | ??????????????????????????????????????????????? | | ??????????????????????????????????????????????? | | ??????????????????????????????????????????????? | | ??????????????????????????????????????????????? | | ??????????????????????????????????????????????? | | ??????????????????????????????????????????????? | | ??????????????????????????????????????????????? | | ??????????????????????????????????????????????? | | ???????????####????##########?????????????????? | | ???######### ##??## #######???????????? | | ???# #### ????????????? | | ???# ###### ## ##???????##?????? | | ??## ####### #?????? ##????? | | ??# ##### @ #????? #????? | | ??# """#???## # #????# ##???? | | ??# """#????## ##### ##??? | | ??# """#?????## # # #?? | | ??# #??????### # d ##### | | ??# #????????#### d #?????? | | ??# < #???????????##### % #???????? # | | ??# #???????????????# ####?????????? ## | | ??#### ####?????????????### ##??????????????#? | | ?????# #????????????????# #???????????????? | | ?????# #???????????????# #??????????????? | | ?????# #??????????????# #??????????????? | | ?????# #######????????# #?????????????? | | ?????# ##! ##??????# #????????????? | | ?????# # =*! #?????# #????????????? | | ?????# # !^!! #????# #????????????? | | ?????# ## !]##???# ## ?????????##?? | | ?????# ### ###### ??# ???????? ?? | | ?????# # ## #???# ??????? ?? | | ?????# # ##?####?????## ??????? ?? | | ?????# ###?????????????# ?????? ?? | | ?????# ##????????????????# ?????# ?? | | ?????## ##??????????????????# ?????# #? | | ??????# ##????????????????????# ????# #? | | ??????# #??????????????????????# ???# #? | +----------------------------------------------------+ Best States ------------- Heat Dissipation 39 Energy Generation 14 Energy Capacity 250 Matter Stores 300 Matter Capacity 300 Sight Range 16 Terrain Scan Density 10 Evasion (%) 55 Recoil Reduction 1 Item Schematics ----------------- None Robot Schematics ------------------ None Fabricated ------------ Nothing Alien Tech Used ----------------- None Achievements -------------- None Challenges ------------ None Game ------ Seed GrenadeEfficiencyModule Manual? 0 Play Time 00:13:19 Cumulative 174.1 hours Start 2022.12.29 @ 21:24:33 End 2022.12.29 @ 21:35:30 Sessions 1 Manual Loads 0 Difficulty Rogue Special Mode None Game No. 257 Rogue 257 Adventurer 0 Explorer 0 Win Type - Total 4 Types 1/0/3/0/0/0/0/0/0 Lore% 70 Gallery% 79 Achievement% 60 Wizard Run 0 Options --------- ASCII 0 Keyboard 0 Movement Numpad Keybinds 0 Fullscreen 1 Font 18/SmallcapsGlow Map View 76x50 Tactical HUD 1 Map Filters NONE Filters NONE Steam 1 RUN: 2c80e792-8119-4723-8f61-d6d4c3992fdb